fUSD/lending_fUSD_20240318
["ID","MTS","AMOUNT","RATE_DAILY","PERIOD"]
[319469173,1710798674898,-500.0,0.00022191,2]
[319469174,1710798674907,-2024.74,0.00022191,2]
[319469175,1710798674917,-696.8,0.00022191,2]
[319469176,1710798674926,-535.16,0.00022191,2]
[319469177,1710798674936,-500.0,0.00022191,2]
[319469178,1710798674945,-197.52467279,0.00022191,2]
[319469179,1710798674954,-2865.68,0.00022191,2]
[319469180,1710798674964,-556.31314116,0.00022191,2]
[319469181,1710798674977,-16024.72685884,0.00022191,2]
[319469182,1710798674986,-934.42,0.00022191,2]
[319469183,1710798675308,-940.27,0.00022191,2]
[319469184,1710798675329,-1070.12,0.00022191,2]
[319469185,1710798675347,-500.0,0.00022191,2]
[319469186,1710798675362,-151.0,0.00022191,7]
[319469187,1710798675379,-532.77,0.00022191,2]
[319469188,1710798675389,-1293.45,0.00022191,2]
[319469189,1710798675399,-287.717236,0.00022191,7]
[319469190,1710798675409,-500.0,0.00022191,2]
[319469191,1710798675419,-500.0,0.00022191,2]
[319469192,1710798675429,-1268.57,0.00022191,2]
[319469193,1710798675440,-1435.99,0.00022191,2]
[319469194,1710798675451,-500.0,0.00022191,2]
[319469195,1710798675461,-500.0,0.00022191,2]
[319469196,1710798675470,-500.0,0.00022191,2]
[319469197,1710798675479,-500.0,0.00022191,2]
[319469198,1710798675489,-640.4,0.00022191,2]
[319469199,1710798675498,-500.0,0.00022191,2]
[319469200,1710798675508,-500.0,0.00022191,2]
[319469201,1710798675518,-2020.54,0.00022191,2]
[319469202,1710798675528,-500.0,0.00022191,2]
[319469203,1710798675538,-2023.89,0.00022191,2]
[319469204,1710798675548,-1562.22,0.00022191,2]
[319469205,1710798675558,-3316.33,0.00022191,2]
[319469206,1710798675568,-500.0,0.00022191,2]
[319469207,1710798675579,-300.0,0.00022191,2]
[319469208,1710798675590,-500.0,0.00022191,2]
[319469209,1710798675601,-2143.11,0.00022191,2]
[319469210,1710798675611,-3857.08,0.00022191,2]
[319469211,1710798675622,-4036.75,0.00022191,2]
[319469212,1710798675632,-1212.26,0.00022191,2]
[319469213,1710798675641,-1574.41,0.00022191,2]
[319469214,1710798675651,-500.0,0.00022191,2]
[319469215,1710798675661,-599.66,0.00022191,2]
[319469216,1710798675671,-500.0,0.00022191,2]
[319469217,1710798675681,-505.04718621,0.00022191,2]
[319469218,1710798675690,-500.0,0.00022191,2]
[319469219,1710798675700,-500.0,0.00022191,2]
[319469220,1710798675710,-1467.99,0.00022191,2]
[319469221,1710798675720,-500.0,0.00022191,2]
[319469222,1710798675729,-1064.8,0.00022191,2]
[319469223,1710798675738,-3361.6,0.00022191,2]
[319469224,1710798675748,-1837.99,0.00022191,2]
[319469225,1710798675757,-500.0,0.00022191,2]
[319469226,1710798675767,-500.0,0.00022191,2]
[319469227,1710798675776,-2601.91,0.00022191,2]
[319469228,1710798675786,-831.72,0.00022191,2]
[319469229,1710798675795,-700.18,0.00022191,2]
[319469230,1710798675804,-500.0,0.00022191,2]
[319469231,1710798675814,-500.0,0.00022191,2]
[319469232,1710798675823,-8795.09,0.00022191,2]
[319469233,1710798675832,-500.0,0.00022191,2]
[319469234,1710798675841,-1314.27,0.00022191,2]
[319469235,1710798675850,-682.45,0.00022191,2]
[319469236,1710798675860,-635.37299103,0.00022191,2]
[319469237,1710798675870,-4964.77,0.00022191,2]
[319469238,1710798675879,-1259.05,0.00022191,2]
[319469239,1710798675890,-600.03,0.00022191,2]
[319469240,1710798675900,-151.0,0.00022191,7]
[319469241,1710798675910,-1142.47,0.00022191,2]
[319469242,1710798675919,-154.266206,0.00022191,7]
[319469243,1710798675929,-500.0,0.00022191,2]
[319469244,1710798675938,-638.45,0.00022191,2]
[319469245,1710798675947,-500.0,0.00022191,2]
[319469246,1710798675956,-500.0,0.00022191,2]
[319469247,1710798675966,-810.59,0.00022191,2]
[319469248,1710798675976,-1080.27,0.00022191,2]
[319469249,1710798675985,-946.63,0.00022191,2]
[319469250,1710798675994,-500.0,0.00022191,2]
[319469251,1710798676003,-500.0,0.00022191,2]
[319469252,1710798676013,-4496.54,0.00022191,2]
[319469253,1710798676024,-500.0,0.00022191,2]
[319469254,1710798676034,-1109.92,0.00022191,2]
[319469255,1710798676044,-15111.13,0.00022191,2]
[319469256,1710798676054,-361.6058239,0.00022191,2]
[319469257,1710798676064,-933.63,0.00022191,2]
[319469258,1710798676074,-500.0,0.00022191,2]
[319469259,1710798676084,-500.0,0.00022191,2]
[319469260,1710798676094,-588.64,0.00022191,2]
[319469261,1710798676104,-611.87,0.00022191,2]
[319469262,1710798676113,-500.0,0.00022191,2]
[319469263,1710798676123,-500.0,0.00022191,2]
[319469264,1710798676133,-506.28,0.00022191,2]
[319469265,1710798676143,-500.0,0.00022191,2]
[319469266,1710798676153,-719.68,0.00022191,2]
[319469267,1710798676162,-1163.94282392,0.00022191,2]
[319469268,1710798676177,-270.0,0.00022191,2]
[319469269,1710798693635,1087.8215713,0.0001,2]
[319469283,1710798878143,1800.92426998,0.00021,30]
[319469289,1710798916362,633.544,0.00011836,2]
[319469297,1710799163835,24537.13396404,0.00011836,2]
[319469298,1710799185798,6981.25599173,0.00011836,2]
[319469299,1710799431277,286.70824086,0.00011836,2]
[319469300,1710799435086,684.54941606,0.00011836,2]
[319469301,1710799435792,284.54818899,0.00011836,2]
[319469302,1710799435935,155.0,0.00011836,2]
[319469303,1710799436284,290.99549456,0.00011836,2]
[319469304,1710799437713,406.01088899,0.00011481,2]
[319469305,1710799437771,805.82862854,0.00011836,2]
[319469306,1710799438830,358.77250535,0.00011836,2]
[319469307,1710799439510,317.38530222,0.00011836,2]
[319469308,1710799440651,155.0,0.00011836,2]
[319469309,1710799440887,155.0,0.00011836,2]
[319469310,1710799445209,295.15163022,0.00011836,2]
[319469311,1710799448492,697.67657089,0.00011836,2]
[319469312,1710799449242,286.70824086,0.00011836,2]
[319469313,1710799449580,323.54889827,0.00011836,2]
[319469314,1710799451950,234.23091947,0.00011836,2]
[319469315,1710799455917,218.49689691,0.00011481,2]
[319469316,1710799456890,155.0,0.00011836,2]
[319469317,1710799457557,317.62952806,0.00011836,2]
[319469318,1710799458321,290.99549456,0.00011836,2]
[319469319,1710799459695,360.21521301,0.00011836,2]
[319469320,1710799460716,171.53262849,0.00011836,2]
[319469321,1710799463969,200.0,0.00011777,2]
[319469322,1710799465215,286.70824086,0.00011836,2]
[319469323,1710799467039,295.37946325,0.00011836,2]
[319469324,1710799467367,323.54889827,0.00011836,2]
[319469325,1710799468491,363.48949343,0.00011836,2]
[319469326,1710799477324,155.0,0.00011836,2]
[319469327,1710799478264,290.99549456,0.00011836,2]
[319469328,1710799481304,286.70824086,0.00011836,2]
[319469329,1710799483376,323.54889827,0.00011836,2]
[319469330,1710799492447,363.48949343,0.00011836,2]
[319469331,1710799493177,155.0,0.00011836,2]
[319469332,1710799500249,290.99549456,0.00011836,2]
[319469333,1710799503374,446.78532415,0.00011836,2]
[319469334,1710799505271,286.70824086,0.00011836,2]
[319469335,1710799508903,155.0,0.00011836,2]
[319469336,1710799512536,363.48949343,0.00011836,2]
[319469337,1710799516269,290.99549456,0.00011836,2]
[319469338,1710799524889,165.66463504,0.00011836,2]
[319469339,1710799525205,286.70824086,0.00011836,2]
[319469340,1710799528473,363.48949343,0.00011836,2]
[319469341,1710799534308,290.99549456,0.00011836,2]
[319469342,1710799541211,286.70824086,0.00011836,2]
[319469343,1710799548467,363.48949343,0.00011836,2]
[319469344,1710799553178,290.99549456,0.00011836,2]
[319469345,1710799554231,-204.50248264,0.00013911,2]
[319469346,1710799554252,-451.21497687,0.00013911,2]
[319469347,1710799554273,-277.01513352,0.00013911,2]
[319469348,1710799554298,-155.0,0.00013912,2]
[319469349,1710799554318,-440.69724842,0.00013912,2]
[319469350,1710799554339,-155.25078883,0.00013912,2]
[319469351,1710799561208,286.70824086,0.00011836,2]
[319469352,1710799566463,363.48949343,0.00011836,2]
[319469353,1710799570270,340.47102195,0.00011836,2]
[319469354,1710799577940,178.55840173,0.00011836,2]
[319469355,1710799579209,286.70824086,0.00011836,2]
[319469356,1710799587080,363.48949343,0.00011836,2]
[319469357,1710799595882,178.55840173,0.00011836,2]
[319469358,1710799597298,286.70824086,0.00011836,2]
[319469359,1710799608521,363.48949343,0.00011836,2]
[319469360,1710799613994,178.55840173,0.00011836,2]
[319469361,1710799617235,432.43255195,0.00011836,2]
[319469362,1710799632475,363.48949343,0.00011836,2]
[319469363,1710799633875,178.55840173,0.00011836,2]
[319469364,1710799656479,272.59983878,0.00011836,2]
[319469365,1710799659945,178.55840173,0.00011836,2]
[319469366,1710799684078,178.55840173,0.00011836,2]
[319469368,1710799703889,178.55840173,0.00011836,2]
[319469369,1710799719891,178.55840173,0.00011836,2]
[319469370,1710799739895,178.55840173,0.00011836,2]
[319469371,1710799746131,-150.0,0.000137,2]
[319469372,1710799746151,-155.0,0.00013701,2]
[319469373,1710799746170,-484.09114728,0.00013701,2]
[319469374,1710799746190,-259.00594111,0.00013701,2]
[319469375,1710799746209,-155.0,0.00013701,2]
[319469376,1710799746229,-294.43492119,0.00013701,2]
[319469377,1710799746249,-235.98479686,0.00013701,2]
[319469378,1710799746269,-361.97035984,0.00013701,2]
[319469379,1710799746287,-155.0,0.00013701,2]
[319469380,1710799746307,-498.99264785,0.00013702,2]
[319469381,1710799746326,-193.51657861,0.00013703,2]
[319469382,1710799746345,-155.0,0.00013703,2]
[319469383,1710799746366,-231.44787666,0.00013704,2]
[319469384,1710799746386,-155.0,0.00013704,2]
[319469385,1710799746406,-126.4575306,0.00013704,2]
[319469386,1710799749574,-164.94740714,0.000137,2]
[319469387,1710799749597,-359.5424694,0.00013704,2]
[319469388,1710799749625,-300.0,0.00013704,2]
[319469389,1710799749658,-150.0,0.00013704,2]
[319469390,1710799749679,-99.29975366,0.00013704,2]
[319469391,1710799750131,-200.70024634,0.00013704,2]
[319469392,1710799750152,-170.16523116,0.00013705,2]
[319469393,1710799750172,-170.16523116,0.00013705,2]
[319469394,1710799750192,-170.16523116,0.00013705,2]
[319469395,1710799750215,-170.16523116,0.00013705,2]
[319469396,1710799750239,-264.29,0.00013818,2]
[319469397,1710799750261,-200.0,0.00013842,2]
[319469398,1710799750280,-354.42,0.00013912,2]
[319469399,1710799750301,-541.97453381,0.00013913,2]
[319469400,1710799750322,-499.64793627,0.00013917,2]
[319469401,1710799750342,-1520.26982195,0.00013919,2]
[319469402,1710799750363,-499.99,0.00013919,2]
[319469403,1710799750383,-299.99,0.00013919,2]
[319469404,1710799750403,-821.869603,0.00014925,2]
[319469405,1710799750423,-10909.81464507,0.00015,2]
[319469406,1710799750445,-210.0,0.0001507,2]
[319469407,1710799750466,-540.0,0.00015074,2]
[319469408,1710799750487,-264.29,0.000152,2]
[319469409,1710799750510,-264.29,0.00016581,2]
[319469410,1710799750533,-300.0,0.00016582,2]
[319469411,1710799750554,-410.39,0.00016869,2]
[319469412,1710799750575,-500.0,0.00017162,2]
[319469413,1710799750597,-23900.0,0.00017192,2]
[319469414,1710799750619,-640.41,0.00017213,2]
[319469415,1710799750639,-173.31,0.00017295,2]
[319469416,1710799750659,-250.0,0.00017368,2]
[319469417,1710799750680,-241.18,0.00017722,2]
[319469418,1710799750699,-241.18,0.0001777,2]
[319469419,1710799750719,-241.18,0.00017819,2]
[319469420,1710799750739,-213.11,0.00017834,2]
[319469421,1710799750761,-1940.62,0.00017856,2]
[319469422,1710799750781,-241.18,0.00017867,2]
[319469423,1710799750802,-714.29428892,0.00017878,2]
[319469424,1710799750830,-285.70571108,0.00017878,2]
[319469425,1710799750850,-241.18,0.00017916,2]
[319469426,1710799750869,-264.29,0.00017963,2]
[319469427,1710799750889,-241.18,0.00017965,2]
[319469428,1710799750909,-241.18,0.00018013,2]
[319469429,1710799750928,-241.18,0.00018062,2]
[319469430,1710799750948,-241.18,0.0001811,2]
[319469431,1710799750967,-241.18,0.00018159,2]
[319469432,1710799750987,-150.0,0.00018172,2]
[319469433,1710799751009,-393.65,0.00018172,2]
[319469434,1710799751029,-175.65579009,0.00018172,2]
[319469435,1710799757914,218.31420712,0.00011836,2]
[319469436,1710799761096,-178.22768306,0.00011998,2]
[319469437,1710799761115,-204.50248264,0.00013699,2]
[319469438,1710799761135,-364.14722839,0.00013699,2]
[319469439,1710799762099,-39.31919467,0.00013699,2]
[319469440,1710799773664,334.39126349,0.00013599,2]
[319469441,1710799804141,150.0,0.00013599,2]
[319469442,1710799804292,150.0,0.00013599,2]
[319469443,1710799804357,150.0,0.00013599,2]
[319469444,1710799804443,150.0,0.00013599,2]
[319469445,1710799804574,150.0,0.00013599,2]
[319469446,1710799804670,75.37677554,0.00013599,2]
[319469450,1710799831588,-74.62322446,0.00013599,2]
[319469451,1710799831598,-150.0,0.00013599,2]
[319469452,1710799831608,-150.0,0.00013599,2]
[319469453,1710799831618,-150.0,0.00013599,2]
[319469454,1710799831627,-150.0,0.00013599,2]
[319469455,1710799831637,-150.0,0.00013599,2]
[319469456,1710799831647,-150.0,0.00013599,2]
[319469457,1710799831656,-150.0,0.00013599,2]
[319469458,1710799831666,-150.0,0.00013599,2]
[319469459,1710799831676,-150.0,0.00013599,2]
[319469460,1710799831686,-150.0,0.00013599,2]
[319469461,1710799831695,-150.0,0.00013599,2]
[319469462,1710799831705,-150.0,0.00013599,2]
[319469463,1710799831715,-150.0,0.00013599,2]
[319469464,1710799831725,-150.0,0.00013599,2]
[319469465,1710799831735,-150.0,0.00013599,2]
[319469466,1710799831744,-150.0,0.00013599,2]
[319469467,1710799831753,-150.0,0.00013599,2]
[319469468,1710799831762,-150.0,0.00013599,2]
[319469469,1710799831772,-150.0,0.00013599,2]
[319469470,1710799831781,-150.0,0.00013599,2]
[319469471,1710799831790,-150.0,0.00013599,2]
[319469472,1710799831799,-150.0,0.00013599,2]
[319469473,1710799831808,-150.0,0.00013599,2]
[319469474,1710799831817,-150.0,0.00013599,2]
[319469475,1710799831828,-150.0,0.00013599,2]
[319469476,1710799831837,-150.0,0.00013599,2]
[319469477,1710799831846,-266.6203934,0.00013599,2]
[319469478,1710799831855,-151.458027,0.00013973,2]
[319469479,1710799831865,-151.458027,0.00014795,2]
[319469480,1710799831875,-151.458027,0.00015616,2]
[319469481,1710799831884,-151.458027,0.00016438,2]
[319469482,1710799831893,-436.15146116,0.00017243,2]
[319469483,1710799831903,-151.458027,0.0001726,2]
[319469484,1710799831912,-235.98479686,0.00017339,2]
[319469485,1710799831921,-294.43492119,0.00017339,2]
[319469486,1710799831931,-193.51657861,0.0001734,2]
[319469487,1710799831940,-498.72500063,0.00017341,2]
[319469488,1710799831950,-155.0,0.00017342,2]
[319469489,1710799831959,-155.0,0.00017342,2]
[319469490,1710799831969,-489.69,0.00017343,2]
[319469491,1710799831978,-436.151461,0.00017484,2]
[319469492,1710799831988,-436.151461,0.00017724,2]
[319469493,1710799831997,-390.78,0.00017839,2]
[319469494,1710799832007,-150.0,0.00017839,2]
[319469495,1710799832016,-1000.0,0.00017878,2]
[319469496,1710799832026,-168.29,0.00017911,2]
[319469497,1710799832035,-184.92377316,0.00017987,2]
[319469498,1710799832045,-5000.0,0.00017988,2]
[319469499,1710799832054,-220.87,0.00018007,10]
[319469500,1710799832063,-324.41,0.00018026,2]
[319469501,1710799832073,-200.0,0.00018077,2]
[319469502,1710799832083,-200.0,0.00018081,2]
[319469503,1710799832092,-151.458027,0.00018082,2]
[319469504,1710799832101,-1442.43,0.00018098,2]
[319469505,1710799832110,-74.34420991,0.00018172,2]
[319469506,1710799832120,-166.23,0.00018172,2]
[319469507,1710799832129,-241.18,0.00018208,2]
[319469508,1710799832138,-241.18,0.00018256,2]
[319469509,1710799832147,-403.31913211,0.00018264,2]
[319469510,1710799832156,-241.18,0.00018305,2]
[319469511,1710799832166,-241.18,0.00018353,2]
[319469512,1710799832175,-241.18,0.00018402,2]
[319469513,1710799832184,-1000.0,0.00018426,2]
[319469514,1710799832193,-241.18,0.00018451,2]
[319469515,1710799832203,-241.18,0.00018499,2]
[319469516,1710799832212,-241.18,0.00018548,2]
[319469517,1710799832222,-276.86386148,0.00018549,2]
[319469518,1710799832231,-559.76649086,0.00018549,2]
[319469519,1710799832240,-155.0,0.00018549,2]
[319469520,1710799832250,-231.1603325,0.00018549,2]
[319469521,1710799832259,-155.0,0.00018549,2]
[319469522,1710799832268,-258.90258942,0.00018549,2]
[319469523,1710799832278,-164.87933758,0.00018549,2]
[319469524,1710799832287,-483.9727751,0.00018549,2]
[319469525,1710799832296,-319.32622911,0.00018549,2]
[319469526,1710799832305,-450.99363359,0.0001855,2]
[319469527,1710799832315,-155.0,0.0001855,2]
[319469528,1710799832326,-12731.96751396,0.00018551,2]
[319469529,1710799832335,-155.0,0.00018559,2]
[319469530,1710799832345,-360.53097053,0.00018559,2]
[319469531,1710799832354,-205.20911928,0.00018559,2]
[319469532,1710799832363,-155.0,0.00018559,2]
[319469533,1710799832373,-160.25297431,0.00018559,2]
[319469534,1710799832382,-444.83296774,0.00018559,2]
[319469535,1710799832392,-234.91084827,0.00018559,2]
[319469536,1710799832402,-155.0,0.00018559,2]
[319469537,1710799832412,-261.86121602,0.00018559,2]
[319469538,1710799832421,-155.0,0.00018559,2]
[319469539,1710799832431,-206.10677387,0.00018559,2]
[319469540,1710799832440,-155.0,0.00018559,2]
[319469541,1710799832450,-269.98525985,0.00018559,2]
[319469542,1710799832459,-204.91056307,0.00018559,2]
[319469543,1710799832468,-198.8163873,0.00018559,2]
[319469544,1710799832478,-155.0,0.00018559,2]
[319469545,1710799832487,-200.77694229,0.0001856,2]
[319469546,1710799832497,-400.0,0.0001856,2]
[319469547,1710799832506,-155.0,0.0001856,2]
[319469548,1710799832516,-340.65943347,0.0001856,2]
[319469549,1710799832526,-1165.89163453,0.0001856,2]
[319469550,1710799832535,-241.18,0.00018596,2]
[319469551,1710799832545,-241.18,0.00018645,2]
[319469552,1710799832772,-173.31,0.00018665,2]
[319469553,1710799832786,-177.47,0.00018893,2]
[319469554,1710799832796,-151.458027,0.00018904,2]
[319469555,1710799832806,-359.59,0.00018967,2]
[319469556,1710799832819,-1000.0,0.00018974,2]
[319469557,1710799832831,-3000.0,0.00019,2]
[319469558,1710799832840,-410.39,0.00019133,2]
[319469559,1710799832850,-500.0,0.00019178,2]
[319469560,1710799832860,-662.0,0.000192,2]
[319469561,1710799832869,-264.29,0.00019345,2]
[319469562,1710799832878,-640.41,0.00019365,2]
[319469563,1710799832888,-153.6268143,0.00019402,2]
[319469564,1710799832897,-153.05383812,0.00019467,2]
[319469565,1710799832906,-1000.0,0.00019522,2]
[319469566,1710799832916,-150.0,0.00019605,2]
[319469567,1710799832925,-254.2035,0.00019608,2]
[319469568,1710799832935,-2500.0,0.00019608,2]
[319469569,1710799832946,-792.92436263,0.00019626,2]
[319469570,1710799832956,-22230.29438275,0.00019626,2]
[319469571,1710799832966,-153.05383812,0.00019663,2]
[319469572,1710799832977,-154.56106172,0.0001967,2]
[319469573,1710799832989,-1581.18,0.00019683,2]
[319469574,1710799833000,-239.68,0.00019689,2]
[319469575,1710799833011,-517.82,0.00019698,3]
[319469576,1710799833021,-755.3,0.00019698,3]
[319469577,1710799833031,-377.65,0.00019698,3]
[319469578,1710799833042,-188.83,0.00019698,3]
[319469579,1710799833053,-566.49,0.00019698,3]
[319469580,1710799833063,-150.0,0.00019701,2]
[319469581,1710799833075,-254174.45200159,0.00019708,2]
[319469582,1710799833084,-151.458027,0.00019726,2]
[319469583,1710799833093,-180.0,0.00019785,2]
[319469584,1710799833104,-150.0,0.00019802,2]
[319469585,1710799833115,-174.59,0.00019833,2]
[319469586,1710799833126,-1500.0,0.0001992,2]
[319469587,1710799833137,-572.59298777,0.00019988,2]
[319469588,1710799833147,-3120.05064316,0.00019998,2]
[319469589,1710799833157,-207.5543073,0.00019998,2]
[319469590,1710799833168,-7012.14918339,0.00019999,2]
[319469591,1710799833178,-5301.68012034,0.0002,2]
[319469592,1710799833188,-32380.81844736,0.0002,2]
[319469593,1710799833198,-155.0,0.0002,2]
[319469594,1710799833209,-1500.0,0.0002002,2]
[319469595,1710799833219,-173.31,0.00020035,2]
[319469596,1710799833230,-1000.0,0.0002007,2]
[319469597,1710799833241,-22230.29438275,0.00020152,2]
[319469598,1710799833251,-792.92436257,0.00020173,2]
[319469599,1710799833261,-1500.0,0.00020215,2]
[319469600,1710799833270,-1500.0,0.00020301,2]
[319469601,1710799833279,-153.05383812,0.00020308,2]
[319469602,1710799833288,-153.05383812,0.00020353,2]
[319469603,1710799833298,-150.0,0.00020356,2]
[319469604,1710799833307,-805.21313279,0.00020408,2]
[319469605,1710799833316,-162.6041618,0.0002042,2]
[319469606,1710799833326,-2445.0,0.00020453,2]
[319469607,1710799833335,-153.80188616,0.00020491,2]
[319469608,1710799833344,-403.85374302,0.00020508,2]
[319469609,1710799833353,-1238.09469289,0.00020528,2]
[319469610,1710799833362,-151.5298599,0.00020528,2]
[319469611,1710799833372,-153.0,0.00020548,2]
[319469612,1710799833381,-150.0,0.0002058,2]
[319469613,1710799833390,-1940.62,0.00020595,2]
[319469614,1710799833400,-150.0,0.00020607,2]
[319469615,1710799833410,-1000.0,0.00020618,2]
[319469616,1710799833419,-150.0,0.00020629,2]
[319469617,1710799833429,-162.6041618,0.00020645,2]
[319469618,1710799833438,-22230.29438275,0.00020678,2]
[319469619,1710799833449,-151.07221851,0.00020688,2]
[319469620,1710799833459,-150.0,0.0002069,2]
[319469621,1710799833469,-150.0,0.00020696,2]
[319469622,1710799833479,-792.92436257,0.0002072,2]
[319469623,1710799833489,-264.29,0.00020727,2]
[319469624,1710799833499,-150.0,0.0002078,2]
[319469625,1710799833508,-150.0,0.00020782,2]
[319469626,1710799833518,-157.92390022,0.00020783,2]
[319469627,1710799833526,-178.29,0.000208,2]
[319469628,1710799833536,-150.0,0.00020824,2]
[319469629,1710799833545,-150.0,0.0002083,2]
[319469630,1710799833557,-150.0,0.00020845,2]
[319469631,1710799833567,-150.0,0.00020857,2]
[319469632,1710799833578,-150.0,0.00020858,2]
[319469633,1710799833587,-213.0,0.00020862,2]
[319469634,1710799833597,-158.12,0.00020865,2]
[319469635,1710799833606,-150.0,0.00020887,2]
[319469636,1710799833614,-150.0,0.00020918,2]
[319469637,1710799833623,-1500.0,0.00020925,2]
[319469638,1710799833633,-150.0,0.00020941,2]
[319469639,1710799833642,-150.0,0.00020942,2]
[319469640,1710799833652,-150.0,0.00020946,2]
[319469641,1710799833661,-150.0,0.00021,2]
[319469642,1710799833670,-150.0,0.00021006,2]
[319469643,1710799833679,-150.0,0.00021017,2]
[319469644,1710799833688,-1500.0,0.00021043,2]
[319469645,1710799833697,-150.0,0.00021047,2]
[319469646,1710799833707,-1510.6,0.00021068,3]
[319469647,1710799833716,-755.3,0.00021068,3]
[319469648,1710799833726,-377.66,0.00021068,3]
[319469649,1710799833736,-150.0,0.00021071,2]
[319469650,1710799833745,-150.0,0.00021075,2]
[319469651,1710799833754,-150.0,0.00021088,2]
[319469652,1710799833763,-1114.75,0.00021096,2]
[319469653,1710799833771,-150.0,0.00021097,2]
[319469654,1710799833781,-150.0,0.00021098,2]
[319469655,1710799833791,-150.0,0.00021109,2]
[319469656,1710799833799,-150.0,0.00021137,2]
[319469657,1710799833809,-1000.0,0.00021166,2]
[319469658,1710799833818,-150.0,0.00021169,2]
[319469659,1710799833828,-150.0,0.00021174,2]
[319469660,1710799833837,-300.0,0.00021181,2]
[319469661,1710799833846,-150.0,0.00021185,2]
[319469662,1710799833854,-150.0,0.00021187,2]
[319469663,1710799833863,-150.0,0.00021196,2]
[319469664,1710799833872,-150.0,0.000212,2]
[319469665,1710799833881,-150.0,0.000212,2]
[319469666,1710799833889,-150.0,0.000212,2]
[319469667,1710799833912,-150.0,0.00021202,2]
[319469668,1710799833928,-22230.29438275,0.00021204,2]
[319469669,1710799833947,-150.0,0.00021209,2]
[319469670,1710799833967,-150.0,0.00021221,2]
[319469671,1710799833983,-174.59,0.00021222,2]
[319469672,1710799834000,-150.0,0.00021231,2]
[319469673,1710799834017,-150.0,0.00021244,2]
[319469674,1710799834037,-150.0,0.00021253,2]
[319469675,1710799834054,-150.0,0.00021259,2]
[319469676,1710799834072,-150.0,0.00021261,2]
[319469677,1710799834092,-792.92436257,0.00021267,2]
[319469678,1710799834108,-150.0,0.00021268,2]
[319469679,1710799834121,-150.0,0.00021278,2]
[319469680,1710799834137,-150.0,0.00021279,2]
[319469681,1710799834154,-150.0,0.00021298,2]
[319469682,1710799834166,-150.0,0.00021305,2]
[319469683,1710799834180,-155.18569217,0.00021311,2]
[319469684,1710799834195,-158.36858529,0.00021318,2]
[319469685,1710799834216,-300.0,0.00021327,2]
[319469686,1710799834230,-359.59,0.00021338,2]
[319469687,1710799834244,-150.0,0.00021338,2]
[319469688,1710799834259,-150.0,0.00021341,2]
[319469689,1710799834273,-425.84862671,0.00021341,2]
[319469690,1710799834289,-300.0,0.00021345,2]
[319469691,1710799834302,-356.43,0.00021348,2]
[319469692,1710799834317,-150.0,0.00021355,2]
[319469693,1710799834333,-150.0,0.00021396,2]
[319469694,1710799834348,-410.39,0.00021396,2]
[319469695,1710799834363,-1500.0,0.00021402,2]
[319469696,1710799834378,-150.0,0.00021406,2]
[319469697,1710799834392,-150.0,0.00021407,2]
[319469698,1710799834408,-150.0,0.00021415,2]
[319469699,1710799834423,-150.0,0.00021416,2]
[319469700,1710799834438,-150.0,0.00021429,2]
[319469701,1710799834454,-300.0,0.00021431,2]